[Event "*** Titled Tuesday Blitz"]
[Site "Chess.com"]
[Date "2020.11.24"]
[Round "8"]
[White "MillyNeuf"]
[Black "manipun1"]
[Result "0-1"]
[WhiteElo "2378"]
[BlackElo "2268"]
[TimeControl "180+1"]
[EndTime "11:46:58 PST"]
[Termination "manipun1 won by checkmate"]

1. e4 {[%clk 0:03:00.9]} 1... d6 {[%clk 0:02:59.7]} 2. d4 {[%clk 0:03:00.5]}
2... Nf6 {[%clk 0:03:00.1]} 3. Nc3 {[%clk 0:02:59.3]} 3... e5 {[%clk 0:02:58.7]}
4. d5 {[%clk 0:02:54]} 4... Be7 {[%clk 0:02:57.5]} 5. Be3 {[%clk 0:02:51.9]}
5... O-O {[%clk 0:02:58.4]} 6. f3 {[%clk 0:02:51.9]} 6... c6 {[%clk 0:02:58.2]}
7. Bc4 {[%clk 0:02:50.1]} 7... b5 {[%clk 0:02:56.3]} 8. Bb3 {[%clk 0:02:47.3]}
8... b4 {[%clk 0:02:50.8]} 9. Nce2 {[%clk 0:02:45.2]} 9... a5 {[%clk 0:02:47.9]}
10. a3 {[%clk 0:02:28.5]} 10... cxd5 {[%clk 0:02:19.3]} 11. Bxd5 {[%clk
0:02:20.9]} 11... Nxd5 {[%clk 0:02:18.3]} 12. Qxd5 {[%clk 0:02:20.6]} 12... Ra6
{[%clk 0:02:18.2]} 13. axb4 {[%clk 0:02:17.1]} 13... axb4 {[%clk 0:02:17.1]} 14.
Rxa6 {[%clk 0:02:13.2]} 14... Nxa6 {[%clk 0:02:16.2]} 15. Nh3 {[%clk 0:02:03.6]}
15... Be6 {[%clk 0:02:05.6]} 16. Qd2 {[%clk 0:02:00.4]} 16... Bxh3 {[%clk
0:01:50.7]} 17. gxh3 {[%clk 0:01:59.6]} 17... Qc8 {[%clk 0:01:48.7]} 18. Ng3
{[%clk 0:01:26.7]} 18... Qxh3 {[%clk 0:01:43.6]} 19. Nf5 {[%clk 0:01:20.8]}
19... Bh4+ {[%clk 0:01:41.1]} 20. Nxh4 {[%clk 0:01:11.2]} 20... Qxh4+ {[%clk
0:01:40.1]} 21. Bf2 {[%clk 0:01:11.2]} 21... Qe7 {[%clk 0:01:39.5]} 22. Rg1
{[%clk 0:01:08.4]} 22... Rc8 {[%clk 0:01:29.8]} 23. Qh6 {[%clk 0:00:42.6]} 23...
g6 {[%clk 0:01:27.6]} 24. Bh4 {[%clk 0:00:40.6]} 24... Qf8 {[%clk 0:01:27.5]}
25. Qxf8+ {[%clk 0:00:25.4]} 25... Kxf8 {[%clk 0:01:26.3]} 26. Kd2 {[%clk
0:00:26]} 26... Ke8 {[%clk 0:01:23.4]} 27. Ra1 {[%clk 0:00:25.1]} 27... Rc6
{[%clk 0:01:22.8]} 28. Bf2 {[%clk 0:00:21.2]} 28... Kd7 {[%clk 0:01:22.1]} 29.
Kd3 {[%clk 0:00:16.1]} 29... Ke6 {[%clk 0:01:21.4]} 30. Ra5 {[%clk 0:00:11.4]}
30... f5 {[%clk 0:01:16.8]} 31. c3 {[%clk 0:00:09.2]} 31... bxc3 {[%clk
0:01:15.2]} 32. bxc3 {[%clk 0:00:10.1]} 32... Nc7 {[%clk 0:01:10.4]} 33. Ra1
{[%clk 0:00:04.9]} 33... d5 {[%clk 0:01:08.9]} 34. exd5+ {[%clk 0:00:04.9]}
34... Nxd5 {[%clk 0:01:08.3]} 35. c4 {[%clk 0:00:03.2]} 35... Nf4+ {[%clk
0:01:04.5]} 36. Kc3 {[%clk 0:00:03.6]} 36... Nh3 {[%clk 0:00:56.7]} 37. Ba7
{[%clk 0:00:02.4]} 37... Ng5 {[%clk 0:00:55.6]} 38. c5 {[%clk 0:00:02.6]} 38...
Nxf3 {[%clk 0:00:54.4]} 39. Kc4 {[%clk 0:00:03.3]} 39... e4 {[%clk 0:00:49.9]}
40. Kb5 {[%clk 0:00:03]} 40... Nd4+ {[%clk 0:00:48.4]} 41. Kc4 {[%clk
0:00:02.1]} 41... Nf3 {[%clk 0:00:37.1]} 42. Kb5 {[%clk 0:00:02.1]} 42... Rc8
{[%clk 0:00:34.9]} 43. c6 {[%clk 0:00:02.1]} 43... Ne5 {[%clk 0:00:34]} 44. Kb6
{[%clk 0:00:02.1]} 44... Rxc6+ {[%clk 0:00:32.5]} 45. Kb7 {[%clk 0:00:01.7]}
45... Rc2 {[%clk 0:00:31.2]} 46. Bb6 {[%clk 0:00:01.8]} 46... f4 {[%clk
0:00:30.7]} 47. Ra6 {[%clk 0:00:02]} 47... Kf5 {[%clk 0:00:29.8]} 48. Bg1 {[%clk
0:00:02.3]} 48... Rg2 {[%clk 0:00:28.9]} 49. Bb6 {[%clk 0:00:03.2]} 49... e3
{[%clk 0:00:28.7]} 50. Ra4 {[%clk 0:00:03.8]} 50... e2 {[%clk 0:00:28]} 51. Ra5
{[%clk 0:00:04.7]} 51... e1=Q {[%clk 0:00:27.4]} 52. Bc7 {[%clk 0:00:05.6]}
52... Qxa5 {[%clk 0:00:26]} 53. Kc8 {[%clk 0:00:05.7]} 53... Rxh2 {[%clk
0:00:25.9]} 54. Bxa5 {[%clk 0:00:06.6]} 54... Rc2+ {[%clk 0:00:25.5]} 55. Bc7
{[%clk 0:00:06.7]} 55... f3 {[%clk 0:00:25.6]} 56. Kb8 {[%clk 0:00:06.7]} 56...
Rxc7 {[%clk 0:00:26.4]} 57. Kxc7 {[%clk 0:00:07]} 57... f2 {[%clk 0:00:27.1]}
58. Kd8 {[%clk 0:00:07.4]} 58... f1=Q {[%clk 0:00:28]} 59. Ke8 {[%clk
0:00:08.3]} 59... Qc4 {[%clk 0:00:28.7]} 60. Kf8 {[%clk 0:00:09.2]} 60... Qc6
{[%clk 0:00:29]} 61. Kg7 {[%clk 0:00:10.1]} 61... Qd7+ {[%clk 0:00:29]} 62. Kg8
{[%clk 0:00:11]} 62... Qe8+ {[%clk 0:00:28.8]} 63. Kxh7 {[%clk 0:00:11.1]} 63...
g5 {[%clk 0:00:27.4]} 64. Kg7 {[%clk 0:00:11.1]} 64... Qf7+ {[%clk 0:00:27.4]}
65. Kh8 {[%clk 0:00:10.6]} 65... Ng6# {[%clk 0:00:25.7]} 0-1

[Event "*** Titled Tuesday Blitz"]
[Site "Chess.com"]
[Date "2020.11.24"]
[Round "8"]
[White "CookiesAndIceCream"]
[Black "beto-betun"]
[Result "1-0"]
[WhiteElo "2428"]
[BlackElo "2195"]
[TimeControl "180+1"]
[EndTime "11:46:59 PST"]
[Termination "CookiesAndIceCream won by resignation"]

1. e4 {[%clk 0:03:00.9]} 1... c5 {[%clk 0:02:59.1]} 2. Nf3 {[%clk 0:03:00.6]}
2... d6 {[%clk 0:02:59.3]} 3. d4 {[%clk 0:03:00.4]} 3... cxd4 {[%clk 0:02:59.9]}
4. Nxd4 {[%clk 0:03:01.3]} 4... Nf6 {[%clk 0:03:00.3]} 5. Nc3 {[%clk 0:03:01.8]}
5... a6 {[%clk 0:03:00.8]} 6. Be3 {[%clk 0:03:02]} 6... e5 {[%clk 0:03:01.1]} 7.
Nb3 {[%clk 0:03:02]} 7... Be7 {[%clk 0:03:01.5]} 8. f3 {[%clk 0:03:02.5]} 8...
Be6 {[%clk 0:03:01.9]} 9. Qd2 {[%clk 0:03:03.4]} 9... Nbd7 {[%clk 0:02:58.4]}
10. O-O-O {[%clk 0:03:03.4]} 10... b5 {[%clk 0:02:58.1]} 11. g4 {[%clk 0:03:03]}
11... Nb6 {[%clk 0:02:58]} 12. g5 {[%clk 0:03:02.3]} 12... Nfd7 {[%clk
0:02:52.1]} 13. Na5 {[%clk 0:03:02.1]} 13... Qc7 {[%clk 0:02:10.1]} 14. Kb1
{[%clk 0:02:58.4]} 14... Rc8 {[%clk 0:02:02.8]} 15. h4 {[%clk 0:02:49.1]} 15...
Nc4 {[%clk 0:01:20.5]} 16. Nxc4 {[%clk 0:02:13.4]} 16... bxc4 {[%clk 0:01:21.4]}
17. h5 {[%clk 0:01:52.9]} 17... Rb8 {[%clk 0:01:13.4]} 18. Ka1 {[%clk
0:01:50.7]} 18... Qb7 {[%clk 0:01:10.9]} 19. Rb1 {[%clk 0:01:44.9]} 19... Nc5
{[%clk 0:01:02.2]} 20. Bxc5 {[%clk 0:01:41]} 20... dxc5 {[%clk 0:01:03.1]} 21.
Bh3 {[%clk 0:01:26.4]} 21... Bxh3 {[%clk 0:00:54.6]} 22. Rxh3 {[%clk 0:01:25.5]}
22... h6 {[%clk 0:00:55]} 23. g6 {[%clk 0:01:17.2]} 23... fxg6 {[%clk
0:00:49.7]} 24. hxg6 {[%clk 0:01:18.1]} 24... O-O {[%clk 0:00:45.6]} 25. Qe2
{[%clk 0:00:58.5]} 25... Bf6 {[%clk 0:00:38.3]} 26. Qxc4+ {[%clk 0:00:53.3]}
26... Kh8 {[%clk 0:00:38.9]} 27. b3 {[%clk 0:00:43.3]} 27... Qb4 {[%clk
0:00:35.9]} 28. Qxb4 {[%clk 0:00:36]} 28... cxb4 {[%clk 0:00:36.8]} 29. Nd5
{[%clk 0:00:35.2]} 29... Rb7 {[%clk 0:00:36.6]} 30. Rd1 {[%clk 0:00:28.6]} 30...
a5 {[%clk 0:00:35.9]} 31. Kb1 {[%clk 0:00:27.3]} 31... Rbb8 {[%clk 0:00:34.9]}
32. Ne3 {[%clk 0:00:24.8]} 32... Rbd8 {[%clk 0:00:34.5]} 33. Rhh1 {[%clk
0:00:23.1]} 33... Kg8 {[%clk 0:00:34.5]} 34. Nf5 {[%clk 0:00:22.4]} 34... Rxd1+
{[%clk 0:00:33.9]} 35. Rxd1 {[%clk 0:00:21.5]} 35... Rd8 {[%clk 0:00:34.2]} 36.
Rxd8+ {[%clk 0:00:21.2]} 36... Bxd8 {[%clk 0:00:35.1]} 37. Kc1 {[%clk
0:00:19.9]} 37... Kf8 {[%clk 0:00:35.7]} 38. Kd2 {[%clk 0:00:20.1]} 38... h5
{[%clk 0:00:34.5]} 39. Ke2 {[%clk 0:00:14.9]} 39... h4 {[%clk 0:00:34.4]} 40.
Kf2 {[%clk 0:00:15]} 40... Bf6 {[%clk 0:00:34.1]} 41. Kg2 {[%clk 0:00:15.3]}
41... Ke8 {[%clk 0:00:34.7]} 42. Kh3 {[%clk 0:00:15.4]} 42... Kd7 {[%clk
0:00:32.8]} 43. Nxh4 {[%clk 0:00:15.4]} 43... Ke6 {[%clk 0:00:30.1]} 44. Nf5
{[%clk 0:00:13.8]} 44... Kd7 {[%clk 0:00:25.9]} 45. Kg2 {[%clk 0:00:13.7]} 45...
Kc6 {[%clk 0:00:26.3]} 46. Kf2 {[%clk 0:00:14]} 46... Kc5 {[%clk 0:00:26.8]} 47.
Ke2 {[%clk 0:00:14.3]} 47... a4 {[%clk 0:00:23.5]} 48. Kd3 {[%clk 0:00:14]}
48... axb3 {[%clk 0:00:20.3]} 49. axb3 {[%clk 0:00:13.4]} 49... Kb5 {[%clk
0:00:21.2]} 50. Ne3 {[%clk 0:00:13.2]} 50... Bg5 {[%clk 0:00:18.7]} 51. Nc4
{[%clk 0:00:10.4]} 51... Bf6 {[%clk 0:00:18]} 52. Ne3 {[%clk 0:00:10.2]} 52...
Bg5 {[%clk 0:00:17.7]} 53. Ng4 {[%clk 0:00:10.6]} 53... Bf4 {[%clk 0:00:16.4]}
54. Nf2 {[%clk 0:00:09.3]} 54... Bg5 {[%clk 0:00:15.8]} 55. Ke2 {[%clk
0:00:08.7]} 55... Kc5 {[%clk 0:00:14.7]} 56. Nd3+ {[%clk 0:00:09]} 56... Kb5
{[%clk 0:00:14.4]} 57. Nxe5 {[%clk 0:00:08.6]} 57... Bf6 {[%clk 0:00:15.3]} 58.
Ng4 {[%clk 0:00:08.5]} 58... Bg5 {[%clk 0:00:15.4]} 59. Kd3 {[%clk 0:00:08.1]}
59... Bf4 {[%clk 0:00:14.4]} 60. e5 {[%clk 0:00:07.6]} 60... Bg5 {[%clk
0:00:14.3]} 61. Ke4 {[%clk 0:00:07.4]} 61... Be7 {[%clk 0:00:14.1]} 62. f4
{[%clk 0:00:08.2]} 62... Kc5 {[%clk 0:00:14.6]} 63. f5 {[%clk 0:00:08.5]} 63...
Kc6 {[%clk 0:00:14.3]} 64. f6 {[%clk 0:00:09.4]} 64... gxf6 {[%clk 0:00:14.3]}
65. exf6 {[%clk 0:00:10.3]} 1-0

[Event "*** Titled Tuesday Blitz"]
[Site "Chess.com"]
[Date "2020.11.24"]
[Round "8"]
[White "Squirlolz"]
[Black "Vuk2000"]
[Result "0-1"]
[WhiteElo "2558"]
[BlackElo "2737"]
[TimeControl "180+1"]
[EndTime "11:47:02 PST"]
[Termination "Vuk2000 won on time"]

1. e4 {[%clk 0:03:00.9]} 1... e6 {[%clk 0:03:00]} 2. d4 {[%clk 0:02:59]} 2... d5
{[%clk 0:03:00.4]} 3. Nd2 {[%clk 0:02:59.7]} 3... Be7 {[%clk 0:02:59.9]} 4. Ngf3
{[%clk 0:02:59.1]} 4... Nf6 {[%clk 0:03:00.1]} 5. e5 {[%clk 0:02:59.9]} 5...
Nfd7 {[%clk 0:03:00.4]} 6. c3 {[%clk 0:03:00.7]} 6... c5 {[%clk 0:03:00.8]} 7.
Bd3 {[%clk 0:03:01.5]} 7... Nc6 {[%clk 0:03:01]} 8. O-O {[%clk 0:03:02.2]} 8...
g5 {[%clk 0:02:56.4]} 9. Nb1 {[%clk 0:03:02.5]} 9... h5 {[%clk 0:02:44]} 10. Be3
{[%clk 0:02:57.9]} 10... g4 {[%clk 0:02:38.3]} 11. Ne1 {[%clk 0:02:57.2]} 11...
Qb6 {[%clk 0:02:34]} 12. b4 {[%clk 0:02:52]} 12... cxd4 {[%clk 0:02:21.1]} 13.
cxd4 {[%clk 0:02:50.2]} 13... Nxb4 {[%clk 0:01:58.5]} 14. Nc3 {[%clk 0:02:50.5]}
14... Nxd3 {[%clk 0:01:46.9]} 15. Nxd3 {[%clk 0:02:51.4]} 15... Qa5 {[%clk
0:01:26.5]} 16. Qb3 {[%clk 0:02:47]} 16... Nb6 {[%clk 0:01:24.5]} 17. Nb5 {[%clk
0:02:45.1]} 17... Nc4 {[%clk 0:01:20.2]} 18. Bf4 {[%clk 0:02:19]} 18... Qb6
{[%clk 0:00:57.2]} 19. f3 {[%clk 0:01:45.4]} 19... Bd7 {[%clk 0:00:46.5]} 20.
Nd6+ {[%clk 0:01:42.2]} 20... Bxd6 {[%clk 0:00:40.7]} 21. exd6 {[%clk
0:01:31.2]} 21... Qxd4+ {[%clk 0:00:40.1]} 22. Kh1 {[%clk 0:01:31.2]} 22... Bc6
{[%clk 0:00:34.3]} 23. Rae1 {[%clk 0:01:20.5]} 23... O-O-O {[%clk 0:00:24.1]}
24. Be5 {[%clk 0:01:07.1]} 24... Nxe5 {[%clk 0:00:22.6]} 25. Nxe5 {[%clk
0:01:08]} 25... Rhf8 {[%clk 0:00:09.2]} 26. Nxc6 {[%clk 0:00:49.5]} 26... bxc6
{[%clk 0:00:09.1]} 27. Rb1 {[%clk 0:00:50.4]} 27... Kd7 {[%clk 0:00:09.2]} 28.
fxg4 {[%clk 0:00:37.2]} 28... hxg4 {[%clk 0:00:05.5]} 29. Qa3 {[%clk 0:00:32.1]}
29... Rb8 {[%clk 0:00:03.9]} 30. Rxb8 {[%clk 0:00:20]} 30... Rxb8 {[%clk
0:00:04.8]} 31. Rxf7+ {[%clk 0:00:20.7]} 31... Ke8 {[%clk 0:00:05.2]} 32. Rf1
{[%clk 0:00:20.8]} 32... Qf4 {[%clk 0:00:03.8]} 33. Qd3 {[%clk 0:00:08.7]} 33...
Qxd6 {[%clk 0:00:02.5]} 34. Qg6+ {[%clk 0:00:09.4]} 34... Kd7 {[%clk 0:00:02.8]}
35. Rf7+ {[%clk 0:00:08.5]} 35... Kc8 {[%clk 0:00:03.3]} 36. Qg8+ {[%clk
0:00:05]} 36... Qd8 {[%clk 0:00:03.4]} 37. Qxd8+ {[%clk 0:00:03.9]} 37... Kxd8
{[%clk 0:00:03.8]} 38. g3 {[%clk 0:00:04.8]} 38... Rb1+ {[%clk 0:00:03.8]} 39.
Kg2 {[%clk 0:00:05.1]} 39... Rb2+ {[%clk 0:00:04.7]} 40. Kg1 {[%clk 0:00:05.7]}
40... Rxa2 {[%clk 0:00:05.1]} 41. Rg7 {[%clk 0:00:02.9]} 41... Ra1+ {[%clk
0:00:05.6]} 42. Kg2 {[%clk 0:00:03.1]} 42... Ra2+ {[%clk 0:00:06.2]} 43. Kg1
{[%clk 0:00:03.7]} 43... Ra4 {[%clk 0:00:06.8]} 44. h4 {[%clk 0:00:02.9]} 44...
gxh3 {[%clk 0:00:06.8]} 45. g4 {[%clk 0:00:03.8]} 45... Ke8 {[%clk 0:00:06.9]}
46. g5 {[%clk 0:00:03.7]} 46... Ra2 {[%clk 0:00:06.5]} 47. Kh1 {[%clk
0:00:02.9]} 47... Kf8 {[%clk 0:00:06.4]} 48. Rh7 {[%clk 0:00:03.3]} 48... Rg2
{[%clk 0:00:06.1]} 49. g6 {[%clk 0:00:01.8]} 49... Rxg6 {[%clk 0:00:06]} 50.
Rxa7 {[%clk 0:00:02.3]} 50... c5 {[%clk 0:00:06.4]} 51. Rh7 {[%clk 0:00:02.4]}
51... c4 {[%clk 0:00:06.7]} 52. Rxh3 {[%clk 0:00:02.6]} 52... Ke7 {[%clk
0:00:07.1]} 53. Rh4 {[%clk 0:00:02.3]} 53... Kd6 {[%clk 0:00:07.4]} 54. Rh3
{[%clk 0:00:01.6]} 54... Kc5 {[%clk 0:00:07.6]} 55. Rg3 {[%clk 0:00:01.4]} 55...
Rxg3 {[%clk 0:00:07.3]} 0-1

[Event "*** Titled Tuesday Blitz"]
[Site "Chess.com"]
[Date "2020.11.24"]
[Round "8"]
[White "Kaua18"]
[Black "Chess_Boxer123"]
[Result "1-0"]
[WhiteElo "2366"]
[BlackElo "2507"]
[TimeControl "180+1"]
[EndTime "11:47:03 PST"]
[Termination "Kaua18 won by checkmate"]

1. e4 {[%clk 0:02:59.2]} 1... b6 {[%clk 0:02:59.8]} 2. Nc3 {[%clk 0:02:58.9]}
2... a5 {[%clk 0:02:57.4]} 3. d4 {[%clk 0:02:59.8]} 3... Bb7 {[%clk 0:02:56.3]}
4. f4 {[%clk 0:02:59.1]} 4... g6 {[%clk 0:02:56.5]} 5. Nf3 {[%clk 0:02:59.4]}
5... Bg7 {[%clk 0:02:57.1]} 6. Be3 {[%clk 0:02:58.3]} 6... a4 {[%clk 0:02:57.6]}
7. a3 {[%clk 0:02:57.7]} 7... d6 {[%clk 0:02:57.2]} 8. Qd2 {[%clk 0:02:57.4]}
8... Nf6 {[%clk 0:02:57]} 9. e5 {[%clk 0:02:55.6]} 9... Ne4 {[%clk 0:02:56.8]}
10. Nxe4 {[%clk 0:02:54.9]} 10... Bxe4 {[%clk 0:02:57.7]} 11. Bc4 {[%clk
0:02:50.3]} 11... d5 {[%clk 0:02:55.7]} 12. Bb5+ {[%clk 0:02:48.2]} 12... c6
{[%clk 0:02:55.9]} 13. Be2 {[%clk 0:02:48]} 13... h6 {[%clk 0:02:48.1]} 14. O-O
{[%clk 0:02:45.4]} 14... e6 {[%clk 0:02:47.9]} 15. c3 {[%clk 0:02:35.4]} 15...
b5 {[%clk 0:02:47.2]} 16. Qd1 {[%clk 0:02:24.6]} 16... Nd7 {[%clk 0:02:45.3]}
17. Nd2 {[%clk 0:02:24.4]} 17... Nb6 {[%clk 0:02:44.2]} 18. Nxe4 {[%clk
0:02:24.2]} 18... dxe4 {[%clk 0:02:45.1]} 19. Bc1 {[%clk 0:02:18.9]} 19... Qd5
{[%clk 0:02:43.1]} 20. Re1 {[%clk 0:02:17]} 20... O-O {[%clk 0:02:35.8]} 21. Qc2
{[%clk 0:02:16.5]} 21... c5 {[%clk 0:02:33.9]} 22. Bxb5 {[%clk 0:01:46.6]} 22...
cxd4 {[%clk 0:02:33]} 23. c4 {[%clk 0:01:46.5]} 23... Rfc8 {[%clk 0:02:19.5]}
24. cxd5 {[%clk 0:01:42]} 24... Rxc2 {[%clk 0:02:18.3]} 25. dxe6 {[%clk
0:01:41.8]} 25... fxe6 {[%clk 0:02:01.6]} 26. Rxe4 {[%clk 0:01:40.6]} 26... Rac8
{[%clk 0:01:52.8]} 27. Re1 {[%clk 0:01:34.4]} 27... R8c4 {[%clk 0:00:58.4]} 28.
Bxc4 {[%clk 0:01:28.2]} 28... Nxc4 {[%clk 0:00:59.3]} 29. Rd1 {[%clk 0:01:24.2]}
29... Bf8 {[%clk 0:00:59.2]} 30. Kf1 {[%clk 0:01:11.3]} 30... Bc5 {[%clk
0:00:57.4]} 31. f5 {[%clk 0:01:00.8]} 31... gxf5 {[%clk 0:00:54.2]} 32. Bxh6
{[%clk 0:01:00.7]} 32... d3 {[%clk 0:00:46.9]} 33. Rxd3 {[%clk 0:00:55.9]} 33...
Nxb2 {[%clk 0:00:44.1]} 34. Rd2 {[%clk 0:00:49.9]} 34... Rxd2 {[%clk 0:00:33.7]}
35. Bxd2 {[%clk 0:00:50.8]} 35... Nc4 {[%clk 0:00:31.6]} 36. Bb4 {[%clk
0:00:49.6]} 36... Bd4 {[%clk 0:00:31.6]} 37. Rc1 {[%clk 0:00:39.5]} 37... Ne3+
{[%clk 0:00:28.8]} 38. Ke2 {[%clk 0:00:36.8]} 38... Nxg2 {[%clk 0:00:28.8]} 39.
Bd6 {[%clk 0:00:35.3]} 39... Nf4+ {[%clk 0:00:27.8]} 40. Kf3 {[%clk 0:00:33.5]}
40... Nd3 {[%clk 0:00:19.9]} 41. Rc4 {[%clk 0:00:33.4]} 41... Nxe5+ {[%clk
0:00:19.5]} 42. Bxe5 {[%clk 0:00:33.1]} 42... Bxe5 {[%clk 0:00:20.4]} 43. Rxa4
{[%clk 0:00:33.9]} 43... Bxh2 {[%clk 0:00:20.9]} 44. Ra7 {[%clk 0:00:30.5]}
44... Bg1 {[%clk 0:00:19.4]} 45. Re7 {[%clk 0:00:28.8]} 45... Bc5 {[%clk
0:00:19.8]} 46. Rxe6 {[%clk 0:00:23.4]} 46... Bxa3 {[%clk 0:00:19.9]} 47. Kf4
{[%clk 0:00:19.8]} 47... Kf7 {[%clk 0:00:19.9]} 48. Kxf5 {[%clk 0:00:19.9]}
48... Be7 {[%clk 0:00:20.8]} 49. Re2 {[%clk 0:00:18.7]} 49... Ke8 {[%clk
0:00:19.9]} 50. Ke6 {[%clk 0:00:16.1]} 50... Ba3 {[%clk 0:00:15.7]} 51. Ra2
{[%clk 0:00:15.3]} 51... Be7 {[%clk 0:00:06]} 52. Ra8+ {[%clk 0:00:13.6]} 52...
Bd8 {[%clk 0:00:06.2]} 53. Rb8 {[%clk 0:00:13.5]} 53... Kf8 {[%clk 0:00:05.4]}
54. Rxd8+ {[%clk 0:00:14.4]} 54... Kg7 {[%clk 0:00:05.5]} 55. Rc8 {[%clk
0:00:14.8]} 55... Kh7 {[%clk 0:00:04.7]} 56. Kf6 {[%clk 0:00:14.7]} 56... Kh6
{[%clk 0:00:05.6]} 57. Rh8# {[%clk 0:00:15.6]} 1-0

[Event "*** Titled Tuesday Blitz"]
[Site "Chess.com"]
[Date "2020.11.24"]
[Round "8"]
[White "Susal_De_Silva"]
[Black "Fy_Rakotomaharo"]
[Result "0-1"]
[WhiteElo "2533"]
[BlackElo "2700"]
[TimeControl "180+1"]
[EndTime "11:47:04 PST"]
[Termination "Fy_Rakotomaharo won by resignation"]

1. e4 {[%clk 0:03:00.9]} 1... c5 {[%clk 0:03:00.2]} 2. Nf3 {[%clk 0:03:01]} 2...
Nc6 {[%clk 0:03:00.7]} 3. Bb5 {[%clk 0:03:01.2]} 3... g6 {[%clk 0:03:00.7]} 4.
Bxc6 {[%clk 0:03:01.3]} 4... dxc6 {[%clk 0:03:01.6]} 5. d3 {[%clk 0:03:01.6]}
5... Bg7 {[%clk 0:03:02.5]} 6. h3 {[%clk 0:03:02.4]} 6... b6 {[%clk 0:03:03]} 7.
O-O {[%clk 0:03:02.6]} 7... Nf6 {[%clk 0:03:03.6]} 8. a4 {[%clk 0:03:02.3]} 8...
a5 {[%clk 0:03:02.6]} 9. Nc3 {[%clk 0:03:02.3]} 9... O-O {[%clk 0:03:03]} 10.
Be3 {[%clk 0:03:01.6]} 10... Ba6 {[%clk 0:03:01.4]} 11. Nd2 {[%clk 0:03:00.2]}
11... e5 {[%clk 0:03:00.5]} 12. f4 {[%clk 0:02:59.6]} 12... exf4 {[%clk
0:03:01.4]} 13. Bxf4 {[%clk 0:03:00.5]} 13... Nd7 {[%clk 0:03:01]} 14. Kh1
{[%clk 0:02:59.6]} 14... Re8 {[%clk 0:02:58]} 15. Qf3 {[%clk 0:02:57.1]} 15...
Qe7 {[%clk 0:02:56.8]} 16. Rad1 {[%clk 0:02:29.2]} 16... Ne5 {[%clk 0:02:56.4]}
17. Bxe5 {[%clk 0:02:26.2]} 17... Bxe5 {[%clk 0:02:57.3]} 18. Nc4 {[%clk
0:02:25.4]} 18... Bxc3 {[%clk 0:02:57.7]} 19. bxc3 {[%clk 0:02:25.1]} 19... Bxc4
{[%clk 0:02:58.2]} 20. dxc4 {[%clk 0:02:25.9]} 20... Rad8 {[%clk 0:02:57.3]} 21.
Rb1 {[%clk 0:02:25.1]} 21... Rd7 {[%clk 0:02:49.8]} 22. Rxb6 {[%clk 0:02:23.6]}
22... Qxe4 {[%clk 0:02:50]} 23. Rb8 {[%clk 0:02:03.1]} 23... Qe6 {[%clk
0:01:33.1]} 24. Rxe8+ {[%clk 0:01:57.5]} 24... Qxe8 {[%clk 0:01:34]} 25. Qxc6
{[%clk 0:01:57.9]} 25... Qe7 {[%clk 0:01:34.5]} 26. Qa8+ {[%clk 0:01:44.9]}
26... Qd8 {[%clk 0:01:28.6]} 27. Qf3 {[%clk 0:01:31.4]} 27... Kg7 {[%clk
0:01:17.9]} 28. Qf2 {[%clk 0:01:29.2]} 28... Qe7 {[%clk 0:01:17.5]} 29. Re1
{[%clk 0:01:29]} 29... Qd6 {[%clk 0:01:16.7]} 30. Rb1 {[%clk 0:01:20.7]} 30...
Qe5 {[%clk 0:01:12.1]} 31. Rf1 {[%clk 0:01:16]} 31... h5 {[%clk 0:01:04]} 32.
Qf3 {[%clk 0:01:15.2]} 32... Qe6 {[%clk 0:00:57]} 33. Qf4 {[%clk 0:00:59.3]}
33... Qe2 {[%clk 0:00:48]} 34. Qf6+ {[%clk 0:00:53.2]} 34... Kh7 {[%clk
0:00:46.9]} 35. Rf2 {[%clk 0:00:37.2]} 35... Qxc4 {[%clk 0:00:41]} 36. Qc6
{[%clk 0:00:32.6]} 36... Re7 {[%clk 0:00:32.1]} 37. Qd6 {[%clk 0:00:31.4]} 37...
Re3 {[%clk 0:00:15.2]} 38. Qf8 {[%clk 0:00:24.7]} 38... f5 {[%clk 0:00:07.9]}
39. Qd6 {[%clk 0:00:13.4]} 39... Qe6 {[%clk 0:00:02.8]} 40. Qc7+ {[%clk
0:00:12.3]} 40... Kh6 {[%clk 0:00:02.7]} 41. Qf4+ {[%clk 0:00:07.8]} 41... Kg7
{[%clk 0:00:02.5]} 42. Qc7+ {[%clk 0:00:08]} 42... Qe7 {[%clk 0:00:02.2]} 43.
Qf4 {[%clk 0:00:05.4]} 43... Re1+ {[%clk 0:00:02.3]} 44. Kh2 {[%clk 0:00:05.8]}
44... Qe5 {[%clk 0:00:02.9]} 45. Qxe5+ {[%clk 0:00:06.1]} 45... Rxe5 {[%clk
0:00:03.8]} 46. Rf4 {[%clk 0:00:06.2]} 46... Re4 {[%clk 0:00:03.3]} 47. Rxe4
{[%clk 0:00:04.6]} 47... fxe4 {[%clk 0:00:04.2]} 48. Kg3 {[%clk 0:00:05.1]}
48... g5 {[%clk 0:00:04.6]} 49. h4 {[%clk 0:00:04.6]} 49... Kg6 {[%clk
0:00:05.1]} 50. Kf2 {[%clk 0:00:04.6]} 50... Kf5 {[%clk 0:00:03.2]} 51. hxg5
{[%clk 0:00:04.5]} 51... Kxg5 {[%clk 0:00:04.1]} 52. Ke3 {[%clk 0:00:05.3]}
52... Kf5 {[%clk 0:00:04.7]} 53. c4 {[%clk 0:00:05.6]} 53... Ke5 {[%clk
0:00:04.7]} 54. c3 {[%clk 0:00:06.4]} 54... Kf5 {[%clk 0:00:04.7]} 55. g3 {[%clk
0:00:06.4]} 55... Ke5 {[%clk 0:00:05]} 56. Ke2 {[%clk 0:00:05.7]} 56... Kf5
{[%clk 0:00:05.5]} 57. Kf2 {[%clk 0:00:06.2]} 57... Kg4 {[%clk 0:00:05.4]} 0-1